fUSD/lending_fUSD_20250214
["ID","MTS","AMOUNT","RATE_DAILY","PERIOD"]
[353078298,1739544670036,-500.0,0.00013945,2]
[353078299,1739544670046,-500.0,0.00013945,2]
[353078300,1739544670056,-864.12,0.00013945,2]
[353078301,1739544670066,-500.0,0.00013945,2]
[353078302,1739544670076,-931.04,0.00013945,2]
[353078303,1739544670086,-500.0,0.00013945,2]
[353078304,1739544670098,-1342.89,0.00013945,2]
[353078305,1739544670108,-500.0,0.00013945,2]
[353078306,1739544670115,-1262.7,0.00013945,2]
[353078307,1739544670125,-871.99,0.00013945,2]
[353078308,1739544670134,-701.41,0.00013945,2]
[353078309,1739544670146,-917.64,0.00013945,2]
[353078310,1739544670155,-598.31,0.00013945,2]
[353078311,1739544670164,-1594.36,0.00013945,2]
[353078312,1739544670175,-500.0,0.00013945,2]
[353078313,1739544670185,-727.18,0.00013945,2]
[353078314,1739544670194,-500.0,0.00013945,2]
[353078315,1739544670204,-1209.19,0.00013945,2]
[353078316,1739544670213,-708.13,0.00013945,2]
[353078317,1739544670222,-934.97,0.00013945,2]
[353078318,1739544670231,-1581.39,0.00013945,2]
[353078319,1739544670240,-779.87,0.00013945,2]
[353078320,1739544670250,-500.0,0.00013945,2]
[353078321,1739544670259,-744.99,0.00013945,2]
[353078322,1739544670267,-726.26,0.00013945,2]
[353078323,1739544670279,-635.98,0.00013945,2]
[353078324,1739544670289,-978.44,0.00013945,2]
[353078325,1739544670298,-1450.61,0.00013945,2]
[353078326,1739544670307,-500.0,0.00013945,2]
[353078327,1739544670317,-200.820466,0.00013945,2]
[353078328,1739544670326,-200.820466,0.00013945,2]
[353078329,1739544670336,-500.0,0.00013945,2]
[353078330,1739544670346,-1548.4,0.00013945,2]
[353078331,1739544670355,-1486.59,0.00013945,2]
[353078332,1739544670364,-200.820466,0.00013945,2]
[353078333,1739544670373,-200.820466,0.00013945,2]
[353078334,1739544670383,-802.99,0.00013945,2]
[353078335,1739544670392,-1107.32,0.00013945,2]
[353078336,1739544670401,-936.07,0.00013945,2]
[353078337,1739544670411,-2614.45,0.00013945,2]
[353078338,1739544670420,-710.72,0.00013945,2]
[353078339,1739544670430,-1150.16,0.00013945,2]
[353078340,1739544670439,-687.93,0.00013945,2]
[353078341,1739544670448,-592.98,0.00013945,2]
[353078342,1739544670457,-1155.9,0.00013945,2]
[353078343,1739544670467,-1976.19,0.00013945,2]
[353078344,1739544670476,-500.0,0.00013945,2]
[353078345,1739544670486,-268.29,0.00013945,2]
[353078346,1739544670496,-1070.16,0.00013945,2]
[353078347,1739544670506,-500.0,0.00013945,2]
[353078348,1739544670515,-742.09,0.00013945,2]
[353078349,1739544670527,-500.0,0.00013945,2]
[353078350,1739544670535,-1623.3,0.00013945,2]
[353078351,1739544670545,-997.85,0.00013945,2]
[353078352,1739544670555,-761.38,0.00013945,2]
[353078353,1739544670565,-151.0,0.00013945,2]
[353078354,1739544670575,-151.0,0.00013945,2]
[353078355,1739544670585,-727.42,0.00013945,2]
[353078356,1739544670594,-1903.26,0.00013945,2]
[353078357,1739544670605,-956.17,0.00013945,2]
[353078358,1739544670614,-513.32,0.00013945,2]
[353078359,1739544670624,-1098.4,0.00013945,2]
[353078360,1739544670633,-1764.08,0.00013945,2]
[353078361,1739544670643,-500.0,0.00013945,2]
[353078362,1739544670653,-2104.25,0.00013945,2]
[353078363,1739544670662,-2002.33,0.00013945,2]
[353078364,1739544670672,-500.0,0.00013945,2]
[353078365,1739544670682,-841.37,0.00013945,2]
[353078366,1739544670692,-964.11,0.00013945,2]
[353078367,1739544670702,-1048.68,0.00013945,2]
[353078368,1739544670712,-553.63,0.00013945,2]
[353078369,1739544670722,-768.42,0.00013945,2]
[353078370,1739544670732,-717.39,0.00013945,2]
[353078371,1739544670742,-500.0,0.00013945,2]
[353078372,1739544670752,-2216.64,0.00013945,2]
[353078373,1739544670762,-1486.6,0.00013945,2]
[353078374,1739544670773,-1430.4,0.00013945,2]
[353078375,1739544670785,-500.0,0.00013945,2]
[353078376,1739544670795,-500.0,0.00013945,2]
[353078377,1739544670804,-586.49,0.00013945,2]
[353078378,1739544670814,-1536.77,0.00013945,2]
[353078379,1739544670824,-1368.84,0.00013945,2]
[353078380,1739544670834,-500.0,0.00013945,2]
[353078381,1739544670844,-1844.89,0.00013945,2]
[353078382,1739544670855,-1068.82,0.00013945,2]
[353078383,1739544670865,-502.76392416,0.00013945,2]
[353078384,1739544670874,-500.0,0.00013945,2]
[353078385,1739544670884,-521.69,0.00013945,2]
[353078386,1739544670895,-500.0,0.00013945,2]
[353078387,1739544670905,-626.82,0.00013945,2]
[353078388,1739544670916,-720.9,0.00013945,2]
[353078389,1739544670927,-1187.63,0.00013945,2]
[353078390,1739544670938,-1264.36,0.00013945,2]
[353078391,1739544670948,-500.0,0.00013945,2]
[353078392,1739544670959,-632.35,0.00013945,2]
[353078393,1739544670969,-236.25745659,0.00013945,2]
[353078394,1739544670980,-576.08,0.00013945,2]
[353078395,1739544670990,-500.0,0.00013945,2]
[353078396,1739544671001,-1434.56,0.00013945,2]
[353078397,1739544671011,-2178.99,0.00013945,2]
[353078398,1739544671021,-755.49,0.00013945,2]
[353078399,1739544671033,-1654.89,0.00013945,2]
[353078400,1739544671045,-500.0,0.00013945,2]
[353078401,1739544671056,-500.0,0.00013945,2]
[353078402,1739544671067,-3925.97,0.00013945,2]
[353078403,1739544671077,-586.36,0.00013945,2]
[353078404,1739544671089,-520.35,0.00013945,2]
[353078405,1739544671102,-634.11,0.00013945,2]
[353078406,1739544671113,-561.73,0.00013945,2]
[353078407,1739544671124,-747.95,0.00013945,2]
[353078408,1739544671135,-500.5,0.00013945,2]
[353078409,1739544671145,-500.0,0.00013945,2]
[353078410,1739544671155,-807.32,0.00013945,2]
[353078411,1739544671165,-500.0,0.00013945,2]
[353078412,1739544671175,-831.08,0.00013945,2]
[353078413,1739544671185,-1263.6,0.00013945,2]
[353078414,1739544671195,-535.69,0.00013945,2]
[353078415,1739544671205,-1239.88,0.00013945,2]
[353078416,1739544671215,-1758.42,0.00013945,2]
[353078417,1739544671225,-2699.91,0.00013945,2]
[353078418,1739544671235,-874.13,0.00013945,2]
[353078419,1739544671245,-896.36,0.00013945,2]
[353078420,1739544671255,-1946.46,0.00013945,2]
[353078421,1739544671265,-1993.9,0.00013945,2]
[353078422,1739544671277,-1045.73,0.00013945,2]
[353078423,1739544671287,-2126.26,0.00013945,2]
[353078424,1739544671298,-500.0,0.00013945,2]
[353078425,1739544671309,-1742.35,0.00013945,2]
[353078426,1739544671319,-4110.54,0.00013945,2]
[353078427,1739544671329,-2011.27,0.00013945,2]
[353078428,1739544671338,-500.0,0.00013945,2]
[353078429,1739544671348,-242.275389,0.00013945,2]
[353078430,1739544671358,-2391.78,0.00013945,2]
[353078431,1739544671368,-609.61,0.00013945,2]
[353078432,1739544671378,-500.0,0.00013945,2]
[353078433,1739544671387,-1831.52,0.00013945,2]
[353078434,1739544671398,-500.0,0.00013945,2]
[353078435,1739544671408,-500.0,0.00013945,2]
[353078436,1739544671418,-2646.27,0.00013945,2]
[353078437,1739544671428,-1174.04,0.00013945,2]
[353078438,1739544671438,-3164.91,0.00013945,2]
[353078439,1739544671448,-884.25,0.00013945,2]
[353078440,1739544671458,-1085.57,0.00013945,2]
[353078441,1739544671468,-1315.32,0.00013945,2]
[353078442,1739544671478,-500.0,0.00013945,2]
[353078443,1739544671488,-1305.11,0.00013945,2]
[353078444,1739544671498,-639.6504116,0.00013945,2]
[353078445,1739544671508,-1534.02,0.00013945,2]
[353078446,1739544671518,-804.3,0.00013945,2]
[353078447,1739544671529,-500.0,0.00013945,2]
[353078448,1739544671539,-3065.35,0.00013945,2]
[353078449,1739544671549,-942.83,0.00013945,2]
[353078450,1739544671559,-500.0,0.00013945,2]
[353078451,1739544671569,-2292.76,0.00013945,2]
[353078452,1739544671578,-598.52,0.00013945,2]
[353078453,1739544671589,-1739.66,0.00013945,2]
[353078454,1739544671599,-513.45093555,0.00013945,2]
[353078455,1739544671609,-500.0,0.00013945,2]
[353078456,1739544671619,-3051.27,0.00013945,2]
[353078457,1739544671629,-500.0,0.00013945,2]
[353078458,1739544671639,-1938.22,0.00013945,2]
[353078459,1739544671649,-1919.75,0.00013945,2]
[353078460,1739544671659,-2644.4,0.00013945,2]
[353078461,1739544671669,-500.0,0.00013945,2]
[353078462,1739544671679,-500.0,0.00013945,2]
[353078463,1739544671689,-500.0,0.00013945,2]
[353078464,1739544671704,-527.01,0.00013945,2]
[353078465,1739544671715,-500.0,0.00013945,2]
[353078466,1739544671725,-3022.44,0.00013945,2]
[353078467,1739544671736,-500.0,0.00013945,2]
[353078468,1739544671746,-2150.61,0.00013945,2]
[353078469,1739544671757,-1103.11,0.00013945,2]
[353078470,1739544671767,-2670.78,0.00013945,2]
[353078471,1739544671778,-852.03,0.00013945,2]
[353078472,1739544671789,-500.0,0.00013945,2]
[353078473,1739544671799,-565.68,0.00013945,2]
[353078474,1739544671809,-534.43,0.00013945,2]
[353078475,1739544671819,-3644.59,0.00013945,2]
[353078476,1739544671829,-1448.15,0.00013945,2]
[353078477,1739544671839,-3104.88,0.00013945,2]
[353078478,1739544671852,-1834.3,0.00013945,2]
[353078479,1739544671862,-500.0,0.00013945,2]
[353078480,1739544671871,-826.96,0.00013945,2]
[353078481,1739544671882,-1560.34,0.00013945,2]
[353078482,1739544671891,-518.85021111,0.00013945,2]
[353078483,1739544671901,-500.0,0.00013945,2]
[353078484,1739544671911,-1308.88,0.00013945,2]
[353078485,1739544671921,-3528.69,0.00013945,2]
[353078486,1739544671932,-1061.33,0.00013945,2]
[353078487,1739544671942,-2015.42,0.00013945,2]
[353078488,1739544671952,-5617.67,0.00013945,2]
[353078489,1739544671962,-756.69,0.00013945,2]
[353078490,1739544671972,-1702.01,0.00013945,2]
[353078491,1739544671982,-500.0,0.00013945,2]
[353078492,1739544671993,-500.0,0.00013945,2]
[353078493,1739544672003,-701.91,0.00013945,2]
[353078494,1739544672014,-3158.22,0.00013945,2]
[353078495,1739544672024,-1786.48,0.00013945,2]
[353078496,1739544672035,-500.0,0.00013945,2]
[353078497,1739544672045,-3903.71,0.00013945,2]
[353078498,1739544672056,-500.0,0.00013945,2]
[353078499,1739544672066,-848.31,0.00013945,2]
[353078500,1739544672076,-1832.52,0.00013945,2]
[353078501,1739544672087,-3315.95,0.00013945,2]
[353078502,1739544672102,-500.0,0.00013945,2]
[353078503,1739544672112,-500.0,0.00013945,2]
[353078504,1739544672121,-2725.27,0.00013945,2]
[353078505,1739544672131,-500.0,0.00013945,2]
[353078506,1739544672140,-2031.81,0.00013945,2]
[353078507,1739544672150,-437.24253852,0.00013945,2]
[353078508,1739544672159,-4599.98,0.00013945,2]
[353078509,1739544672169,-2890.39,0.00013945,2]
[353078510,1739544672179,-500.0,0.00013945,2]
[353078511,1739544672189,-703.01,0.00013945,2]
[353078512,1739544672199,-504.99192568,0.00013945,2]
[353078513,1739544672209,-1874.26,0.00013945,2]
[353078514,1739544672219,-3262.91,0.00013945,2]
[353078515,1739544672229,-2314.45,0.00013945,2]
[353078516,1739544672239,-1772.25,0.00013945,2]
[353078517,1739544672248,-603.08,0.00013945,2]
[353078518,1739544672258,-9777.12,0.00013945,2]
[353078519,1739544672268,-500.0,0.00013945,2]
[353078520,1739544672278,-2126.44,0.00013945,2]
[353078521,1739544672287,-500.0,0.00013945,2]
[353078522,1739544672298,-500.0,0.00013945,2]
[353078523,1739544672307,-5018.81,0.00013945,2]
[353078524,1739544672318,-742.14,0.00013945,2]
[353078525,1739544672328,-500.0,0.00013945,2]
[353078526,1739544672338,-1707.91,0.00013945,2]
[353078527,1739544672347,-4887.29,0.00013945,2]
[353078528,1739544672357,-1348.91,0.00013945,2]
[353078529,1739544672367,-506.52953855,0.00013945,2]
[353078530,1739544672377,-2091.28,0.00013945,2]
[353078531,1739544672386,-3940.98,0.00013945,2]
[353078532,1739544672397,-212.711082,0.00013945,2]
[353078533,1739544672406,-806.99,0.00013945,2]
[353078534,1739544672416,-212.711082,0.00013945,2]
[353078535,1739544672425,-2219.75,0.00013945,2]
[353078536,1739544672435,-212.711082,0.00013945,2]
[353078537,1739544672445,-212.711082,0.00013945,2]
[353078538,1739544672454,-9856.61,0.00013945,2]
[353078539,1739544672465,-3791.9,0.00013945,2]
[353078540,1739544672474,-1688.79,0.00013945,2]
[353078541,1739544672484,-569.15986432,0.00013945,2]
[353078542,1739544672495,-1160.16,0.00013945,2]
[353078543,1739544672505,-1010.37,0.00013945,2]
[353078544,1739544672515,-3867.62,0.00013945,2]
[353078545,1739544672527,-2871.72,0.00013945,2]
[353078546,1739544672536,-555.99,0.00013945,2]
[353078547,1739544672546,-500.0,0.00013945,2]
[353078548,1739544672556,-3497.49,0.00013945,2]
[353078549,1739544672566,-4324.25,0.00013945,2]
[353078550,1739544672575,-500.0,0.00013945,2]
[353078551,1739544672584,-500.0,0.00013945,2]
[353078552,1739544672594,-511.50720129,0.00013945,2]
[353078553,1739544672604,-503.82,0.00013945,2]
[353078554,1739544672613,-500.0,0.00013945,2]
[353078555,1739544672623,-500.0,0.00013945,2]
[353078556,1739544672632,-1311.88,0.00013945,2]
[353078557,1739544672642,-635.55,0.00013945,2]
[353078558,1739544672651,-3120.27,0.00013945,2]
[353078559,1739544672661,-3050.97,0.00013945,2]
[353078560,1739544672670,-2478.28,0.00013945,2]
[353078561,1739544672680,-3878.71,0.00013945,2]
[353078562,1739544672689,-2905.87,0.00013945,2]
[353078563,1739544672700,-3113.23,0.00013945,2]
[353078564,1739544672711,-9308.41,0.00013945,2]
[353078565,1739544672721,-2064.17,0.00013945,2]
[353078566,1739544672731,-1168.26,0.00013945,2]
[353078567,1739544672742,-974.13,0.00013945,2]
[353078568,1739544672752,-500.0,0.00013945,2]
[353078569,1739544672762,-2987.68,0.00013945,2]
[353078570,1739544672772,-599.03,0.00013945,2]
[353078571,1739544672950,-2495.74,0.00013945,2]
[353078572,1739544672961,-500.0,0.00013945,2]
[353078573,1739544672970,-500.0,0.00013945,2]
[353078574,1739544672980,-3753.97,0.00013945,2]
[353078575,1739544672989,-661.86,0.00013945,2]
[353078576,1739544672998,-500.0,0.00013945,2]
[353078577,1739544673007,-2852.23,0.00013945,2]
[353078578,1739544673017,-2282.79,0.00013945,2]
[353078579,1739544673027,-500.0,0.00013945,2]
[353078580,1739544673037,-500.0,0.00013945,2]
[353078581,1739544673047,-659.95,0.00013945,2]
[353078582,1739544673056,-500.0,0.00013945,2]
[353078583,1739544673066,-2097.8,0.00013945,2]
[353078584,1739544673075,-657.14,0.00013945,2]
[353078585,1739544673085,-1146.32,0.00013945,2]
[353078586,1739544673095,-5107.22,0.00013945,2]
[353078587,1739544673107,-877.64,0.00013945,2]
[353078588,1739544673116,-4773.03,0.00013945,2]
[353078589,1739544673126,-3084.9,0.00013945,2]
[353078590,1739544673136,-500.0,0.00013945,2]
[353078591,1739544673148,-829.21,0.00013945,2]
[353078592,1739544673158,-500.0,0.00013945,2]
[353078593,1739544673167,-4382.38,0.00013945,2]
[353078594,1739544673179,-500.0,0.00013945,2]
[353078595,1739544673188,-500.0,0.00013945,2]
[353078596,1739544673198,-500.0,0.00013945,2]
[353078597,1739544673208,-3816.98,0.00013945,2]
[353078598,1739544673217,-1329.9,0.00013945,2]
[353078599,1739544673227,-3267.0,0.00013945,2]
[353078600,1739544673236,-779.2,0.00013945,2]
[353078601,1739544673246,-500.0,0.00013945,2]
[353078602,1739544673255,-3531.24,0.00013945,2]
[353078603,1739544673265,-1241.61,0.00013945,2]
[353078604,1739544673275,-1017.37,0.00013945,2]
[353078605,1739544673285,-500.0,0.00013945,2]
[353078606,1739544673294,-500.0,0.00013945,2]
[353078607,1739544673305,-681.69,0.00013945,2]
[353078608,1739544673314,-500.0,0.00013945,2]
[353078609,1739544673323,-1317.51,0.00013945,2]
[353078610,1739544673332,-617.61,0.00013945,2]
[353078611,1739544673342,-542.26,0.00013945,2]
[353078612,1739544673351,-500.0,0.00013945,2]
[353078613,1739544673361,-3593.84,0.00013945,2]
[353078614,1739544673370,-4983.75,0.00013945,2]
[353078615,1739544673380,-3036.12,0.00013945,2]
[353078616,1739544673389,-542.86,0.00013945,2]
[353078617,1739544673399,-2461.67,0.00013945,2]
[353078618,1739544673409,-520.9,0.00013945,2]
[353078619,1739544673419,-500.0,0.00013945,2]
[353078620,1739544673429,-3383.44,0.00013945,2]
[353078621,1739544673439,-662.81,0.00013945,2]
[353078622,1739544673448,-1911.36,0.00013945,2]
[353078623,1739544673458,-500.0,0.00013945,2]
[353078624,1739544673467,-3689.77,0.00013945,2]
[353078625,1739544673476,-2009.32,0.00013945,2]
[353078626,1739544673486,-970.34,0.00013945,2]
[353078627,1739544673496,-5827.67,0.00013945,2]
[353078628,1739544673507,-500.0,0.00013945,2]
[353078629,1739544673517,-3320.84,0.00013945,2]
[353078630,1739544673527,-500.0,0.00013945,2]
[353078631,1739544673536,-4696.51,0.00013945,2]
[353078632,1739544673546,-2598.35,0.00013945,2]
[353078633,1739544673555,-500.0,0.00013945,2]
[353078634,1739544673564,-500.0,0.00013945,2]
[353078635,1739544673574,-500.0,0.00013945,2]
[353078636,1739544673583,-2259.73,0.00013945,2]
[353078637,1739544673593,-500.0,0.00013945,2]
[353078638,1739544673603,-4477.39,0.00013945,2]
[353078639,1739544673613,-1589.29,0.00013945,2]
[353078640,1739544673623,-1657.4,0.00013945,2]
[353078641,1739544673632,-2233.64,0.00013945,2]
[353078642,1739544673642,-500.0,0.00013945,2]
[353078643,1739544673651,-500.0,0.00013945,2]
[353078644,1739544673661,-1417.16,0.00013945,2]
[353078645,1739544673671,-653.7,0.00013945,2]
[353078646,1739544673681,-504.69115918,0.00013945,2]
[353078647,1739544673690,-500.0,0.00013945,2]
[353078648,1739544673699,-896.69,0.00013945,2]
[353078649,1739544673709,-3209.23,0.00013945,2]
[353078650,1739544673719,-500.0,0.00013945,2]
[353078651,1739544673729,-1823.66,0.00013945,2]
[353078652,1739544673739,-517.09,0.00013945,2]
[353078653,1739544673748,-2492.01,0.00013945,2]
[353078654,1739544673757,-1632.35,0.00013945,2]
[353078655,1739544673767,-500.0,0.00013945,2]
[353078656,1739544673777,-2703.17,0.00013945,2]
[353078657,1739544673787,-1185.65,0.00013945,2]
[353078658,1739544673797,-500.0,0.00013945,2]
[353078659,1739544673806,-500.0,0.00013945,2]
[353078660,1739544673816,-500.0,0.00013945,2]
[353078661,1739544673825,-500.0,0.00013945,2]
[353078662,1739544673835,-4133.86,0.00013945,2]
[353078663,1739544673844,-500.0,0.00013945,2]
[353078664,1739544673854,-151.0,0.00013945,2]
[353078665,1739544673863,-3609.04,0.00013945,2]
[353078666,1739544673874,-500.0,0.00013945,2]
[353078667,1739544673883,-3754.44,0.00013945,2]
[353078668,1739544673893,-291.438618,0.00013945,2]
[353078669,1739544673903,-151.0,0.00013945,2]
[353078670,1739544673913,-500.0,0.00013945,2]
[353078671,1739544673922,-2296.67,0.00013945,2]
[353078672,1739544673932,-3027.31,0.00013945,2]
[353078673,1739544673941,-850.36,0.00013945,2]
[353078674,1739544673951,-1599.65,0.00013945,2]
[353078675,1739544673961,-151.0,0.00013945,2]
[353078676,1739544673970,-647.71,0.00013945,2]
[353078677,1739544673979,-4105.41,0.00013945,2]
[353078678,1739544673989,-742.16,0.00013945,2]
[353078679,1739544673998,-566.89,0.00013945,2]
[353078680,1739544674007,-3914.44,0.00013945,2]
[353078681,1739544674016,-385.79123965,0.00013945,2]
[353078682,1739544674026,-494.69043714,0.00013945,2]
[353078683,1739544674035,-3135.9,0.00013989,2]
[353078684,1739544674044,-2010.2901,0.00014,2]
[353078685,1739544674053,-2000.0,0.00014,2]
[353078686,1739544674062,-2000.0,0.00014,2]
[353078687,1739544674072,-2500.0,0.00014,2]
[353078688,1739544674082,-339.13386762,0.00014017,2]
[353078689,1739544674095,-1911.281941,0.00014027,2]
[353078690,1739544674104,-1337.301732,0.00014027,2]
[353078691,1739544674113,-659.14,0.00014027,2]
[353078692,1739544674123,-500.0,0.00014027,2]
[353078693,1739544674133,-709.35,0.00014027,2]
[353078694,1739544674143,-500.0,0.00014027,2]
[353078695,1739544674152,-631.86,0.00014027,2]
[353078696,1739544674161,-500.0,0.00014027,2]
[353078697,1739544674172,-500.0,0.00014027,2]
[353078698,1739544674181,-718.88,0.00014027,2]
[353078699,1739544674191,-500.0,0.00014027,2]
[353078700,1739544674200,-594.18,0.00014027,2]
[353078701,1739544674209,-500.0,0.00014027,2]
[353078702,1739544674218,-621.55,0.00014027,2]
[353078703,1739544674226,-500.0,0.00014027,2]
[353078704,1739544674236,-500.0,0.00014027,2]
[353078705,1739544674245,-500.0,0.00014027,2]
[353078706,1739544674254,-500.0,0.00014027,2]
[353078707,1739544674263,-500.0,0.00014027,2]
[353078708,1739544674272,-742.42,0.00014027,2]
[353078709,1739544674284,-814.3,0.00014027,2]
[353078710,1739544674293,-500.0,0.00014027,2]
[353078711,1739544674302,-500.0,0.00014027,2]
[353078712,1739544674311,-539.6,0.00014027,2]
[353078713,1739544674320,-667.62,0.00014027,2]
[353078714,1739544674330,-500.0,0.00014027,2]
[353078715,1739544674339,-500.0,0.00014027,2]
[353078716,1739544674348,-500.0,0.00014027,2]
[353078717,1739544674357,-524.12,0.00014027,2]
[353078718,1739544674367,-503.78,0.00014027,2]
[353078719,1739544674376,-760.17,0.00014027,2]
[353078720,1739544674385,-1130.54,0.00014027,2]
[353078721,1739544674395,-901.3,0.00014027,2]
[353078722,1739544674404,-500.0,0.00014027,2]
[353078723,1739544674413,-500.0,0.00014027,2]
[353078724,1739544674422,-500.0,0.00014027,2]
[353078725,1739544674431,-500.0,0.00014027,2]
[353078726,1739544674440,-607.24,0.00014027,2]
[353078727,1739544674450,-500.0,0.00014027,2]
[353078728,1739544674459,-609.68,0.00014027,2]
[353078729,1739544674469,-673.47,0.00014027,2]
[353078730,1739544674478,-500.0,0.00014027,2]
[353078731,1739544674487,-500.0,0.00014027,2]
[353078732,1739544674497,-500.0,0.00014027,2]
[353078733,1739544674506,-619.31,0.00014027,2]
[353078734,1739544674516,-500.0,0.00014027,2]
[353078735,1739544674525,-500.0,0.00014027,2]
[353078736,1739544674536,-500.0,0.00014027,2]
[353078737,1739544674545,-717.98,0.00014027,2]
[353078738,1739544674555,-920.52,0.00014027,2]
[353078739,1739544674564,-1053.05,0.00014027,2]
[353078740,1739544674573,-579.27,0.00014027,2]
[353078741,1739544674582,-500.0,0.00014027,2]
[353078742,1739544674592,-655.19,0.00014027,2]
[353078743,1739544674601,-151.0,0.00014027,2]
[353078744,1739544674610,-151.0,0.00014027,2]
[353078745,1739544674619,-551.39,0.00014027,2]
[353078746,1739544674629,-500.0,0.00014027,2]
[353078747,1739544674638,-500.0,0.00014027,2]
[353078748,1739544674648,-916.51,0.00014027,2]
[353078749,1739544674657,-500.0,0.00014027,2]
[353078750,1739544674667,-690.09,0.00014027,2]
[353078751,1739544674677,-850.89,0.00014027,2]
[353078752,1739544674687,-500.0,0.00014027,2]
[353078753,1739544674697,-622.05,0.00014027,2]
[353078754,1739544674707,-500.0,0.00014027,2]
[353078755,1739544674716,-845.24,0.00014027,2]
[353078756,1739544674726,-2399.9,0.00014027,2]
[353078757,1739544674735,-500.0,0.00014027,2]
[353078758,1739544674744,-882.97,0.00014027,2]
[353078759,1739544674753,-500.0,0.00014027,2]
[353078760,1739544674762,-500.0,0.00014027,2]
[353078761,1739544674772,-500.0,0.00014027,2]
[353078762,1739544674783,-500.0,0.00014027,2]
[353078763,1739544674793,-500.0,0.00014027,2]
[353078764,1739544674802,-1071.14,0.00014027,2]
[353078765,1739544674811,-500.0,0.00014027,2]
[353078766,1739544674820,-520.64,0.00014027,2]
[353078767,1739544674830,-500.0,0.00014027,2]
[353078768,1739544674840,-569.33,0.00014027,2]
[353078769,1739544674849,-500.0,0.00014027,2]
[353078770,1739544674858,-500.0,0.00014027,2]
[353078771,1739544674867,-1565.53,0.00014027,2]
[353078772,1739544674876,-1214.8,0.00014027,2]
[353078773,1739544674886,-608.54,0.00014027,2]
[353078774,1739544674896,-1087.72,0.00014027,2]
[353078775,1739544674906,-870.49,0.00014027,2]
[353078776,1739544674915,-858.99,0.00014027,2]
[353078777,1739544674924,-500.0,0.00014027,2]
[353078778,1739544674934,-843.1,0.00014027,2]
[353078779,1739544674943,-1573.74,0.00014027,2]
[353078780,1739544674952,-1220.82,0.00014027,2]
[353078781,1739544674961,-1854.13,0.00014027,2]
[353078782,1739544674970,-651.62,0.00014027,2]
[353078783,1739544674981,-500.0,0.00014027,2]
[353078784,1739544674990,-1294.49,0.00014027,2]
[353078785,1739544675000,-500.0,0.00014027,2]
[353078786,1739544675009,-975.09,0.00014027,2]
[353078787,1739544675018,-601.37,0.00014027,2]
[353078788,1739544675028,-500.0,0.00014027,2]
[353078789,1739544675038,-802.24,0.00014027,2]
[353078790,1739544675048,-1276.04,0.00014027,2]
[353078791,1739544675058,-855.93,0.00014027,2]
[353078792,1739544675067,-953.5,0.00014027,2]
[353078793,1739544675077,-1669.73,0.00014027,2]
[353078794,1739544675086,-500.0,0.00014027,2]
[353078795,1739544675096,-500.0,0.00014027,2]
[353078796,1739544675106,-738.15,0.00014027,2]
[353078797,1739544675115,-1316.02,0.00014027,2]